fUST/lending_fUST_20250607
["ID","MTS","AMOUNT","RATE_DAILY","PERIOD"]
[364779771,1749239449599,-200.0,0.0002313,7]
[364779772,1749239449608,-615.33,0.000232,7]
[364779773,1749239449617,-598.28,0.000232,11]
[364779774,1749239449627,-1161.18670481,0.00023214,2]
[364779775,1749239449637,-1200.0,0.00023215,2]
[364779776,1749239449646,-1000.0,0.00023215,2]
[364779777,1749239449655,-1000.0,0.00023215,2]
[364779778,1749239449665,-1000.0,0.00023215,2]
[364779779,1749239449674,-1000.0,0.00023215,2]
[364779780,1749239449683,-1000.0,0.00023215,2]
[364779781,1749239449693,-1000.0,0.00023215,2]
[364779782,1749239449702,-501.08444656,0.00023215,2]
[364779783,1749239449712,-1000.0,0.00023215,2]
[364779784,1749239449721,-1000.0,0.00023215,2]
[364779785,1749239449730,-1000.0,0.00023215,2]
[364779786,1749239449739,-1040.44970765,0.00023215,2]
[364779787,1749239449748,-570.48775051,0.00023215,2]
[364779788,1749239449757,-500.0,0.00023219,2]
[364779789,1749239449767,-1000.0,0.00023219,2]
[364779790,1749239449776,-1000.0,0.00023219,2]
[364779791,1749239449786,-1000.0,0.00023219,2]
[364779792,1749239449795,-1000.0,0.00023219,2]
[364779793,1749239449804,-3318.27446779,0.00023245,8]
[364779794,1749239449813,-200.0,0.00023287,2]
[364779795,1749239449822,-200.0,0.00023287,2]
[364779796,1749239449832,-200.0,0.00023287,2]
[364779797,1749239449840,-200.0,0.00023287,2]
[364779798,1749239449849,-200.0,0.00023287,2]
[364779799,1749239449859,-200.0,0.00023287,2]
[364779800,1749239449868,-200.0,0.00023287,2]
[364779801,1749239449877,-200.0,0.00023287,2]
[364779802,1749239449886,-200.0,0.00023287,2]
[364779803,1749239449895,-200.0,0.00023287,2]
[364779804,1749239449904,-200.0,0.00023287,2]
[364779805,1749239449916,-200.0,0.00023287,2]
[364779806,1749239449925,-200.0,0.00023287,2]
[364779807,1749239449933,-200.0,0.00023287,2]
[364779808,1749239449942,-200.0,0.00023287,2]
[364779809,1749239449952,-186.81285346,0.00023287,2]
[364779810,1749239449961,-440.0,0.00023287,2]
[364779811,1749239449970,-468.46,0.00023287,2]
[364779812,1749239449980,-278.87782279,0.00023287,2]
[364779813,1749239449990,-4099.41,0.00023287,2]
[364779814,1749239449999,-884.52,0.00023287,2]
[364779815,1749239450008,-1995.24,0.00023287,2]
[364779816,1749239450017,-712.73,0.00023287,2]
[364779817,1749239450025,-440.0,0.00023287,2]
[364779818,1749239450034,-2530.66,0.00023287,2]
[364779819,1749239450043,-440.0,0.00023287,2]
[364779820,1749239450052,-440.0,0.00023287,2]
[364779821,1749239450061,-1295.65,0.00023287,2]
[364779822,1749239450070,-440.0,0.00023287,2]
[364779823,1749239450079,-1007.76,0.00023287,2]
[364779824,1749239450088,-1150.94,0.00023287,2]
[364779825,1749239450097,-440.0,0.00023287,2]
[364779826,1749239450106,-662.4,0.00023287,2]
[364779827,1749239450115,-1190.15,0.00023287,2]
[364779828,1749239450124,-959.16,0.00023287,2]
[364779829,1749239450133,-440.0,0.00023287,2]
[364779830,1749239450143,-440.0,0.00023287,2]
[364779831,1749239450152,-440.0,0.00023287,2]
[364779832,1749239450161,-2892.11,0.00023287,2]
[364779833,1749239450170,-273.81909204,0.00023287,2]
[364779834,1749239450179,-440.0,0.00023287,2]
[364779835,1749239450188,-169.2,0.00023287,2]
[364779836,1749239450197,-1124.66,0.00023287,2]
[364779837,1749239450207,-450.41,0.00023287,2]
[364779838,1749239450217,-878.49,0.00023287,2]
[364779839,1749239450227,-2178.32,0.00023287,2]
[364779840,1749239450237,-440.0,0.00023287,2]
[364779841,1749239450246,-395.15834689,0.00023287,2]
[364779842,1749239450256,-4989.3,0.00023287,2]
[364779843,1749239450266,-440.0,0.00023287,2]
[364779844,1749239450275,-664.7,0.00023287,2]
[364779845,1749239450285,-1873.87,0.00023287,2]
[364779846,1749239450293,-553.06,0.00023287,2]
[364779847,1749239450302,-500.0,0.00023287,7]
[364779848,1749239450312,-957.81,0.00023287,2]
[364779849,1749239450321,-1334.64,0.00023287,2]
[364779850,1749239450330,-151.0,0.000233,7]
[364779851,1749239450340,-984.21943135,0.0002331,2]
[364779852,1749239450349,-3000.0,0.0002332,2]
[364779853,1749239450359,-151.0,0.0002332,7]
[364779854,1749239450368,-3000.0,0.0002333,2]
[364779855,1749239450378,-3000.0,0.0002334,2]
[364779856,1749239450386,-218.60636307,0.00023342,2]
[364779857,1749239450395,-182.17196922,0.00023342,2]
[364779858,1749239450404,-202.00448898,0.00023342,2]
[364779859,1749239450413,-3000.0,0.0002335,2]
[364779860,1749239450423,-3000.0,0.0002336,2]
[364779861,1749239450432,-3000.0,0.0002337,2]
[364779862,1749239450441,-3000.0,0.0002338,2]
[364779863,1749239450450,-3318.27446779,0.00023383,9]
[364779864,1749239450461,-3000.0,0.0002339,2]
[364779865,1749239450471,-159.061941,0.0002339,7]
[364779866,1749239450481,-159.061941,0.0002339,7]
[364779867,1749239450491,-3000.0,0.000234,2]
[364779868,1749239450500,-3000.0,0.0002341,2]
[364779869,1749239450510,-3000.0,0.0002342,2]
[364779870,1749239450519,-3000.0,0.0002343,2]
[364779871,1749239450529,-223.0315306,0.00023438,2]
[364779872,1749239450538,-3857.732409,0.0002344,2]
[364779873,1749239450548,-5000.0,0.0002344,2]
[364779874,1749239450557,-973.87128663,0.00023463,2]
[364779875,1749239450567,-1500.0,0.00023463,2]
[364779876,1749239450576,-2000.0,0.000235,2]
[364779877,1749239450585,-400.0,0.000235,2]
[364779878,1749239450595,-151.0,0.000235,5]
[364779879,1749239450604,-151.0,0.000235,5]
[364779880,1749239450613,-3318.27446779,0.00023521,9]
[364779881,1749239450622,-150.0,0.00023554,2]
[364779882,1749239450631,-440.0,0.00023561,2]
[364779883,1749239450640,-468.46,0.00023561,2]
[364779884,1749239450649,-4099.41,0.00023561,2]
[364779885,1749239450659,-884.52,0.00023561,2]
[364779886,1749239450668,-1995.24,0.00023561,2]
[364779887,1749239450677,-712.73,0.00023561,2]
[364779888,1749239450687,-440.0,0.00023561,2]
[364779889,1749239450696,-2530.66,0.00023561,2]
[364779890,1749239450706,-440.0,0.00023561,2]
[364779891,1749239450715,-440.0,0.00023561,2]
[364779892,1749239450725,-1295.65,0.00023561,2]
[364779893,1749239450734,-440.0,0.00023561,2]
[364779894,1749239450744,-1007.76,0.00023561,2]
[364779895,1749239450754,-1150.94,0.00023561,2]
[364779896,1749239450763,-414.00812905,0.00023561,2]
[364779897,1749239450772,-662.4,0.00023561,2]
[364779898,1749239450790,-1190.15,0.00023561,2]
[364779899,1749239450802,-959.16,0.00023561,2]
[364779900,1749239450812,-317.96485087,0.00023561,2]
[364779901,1749239450822,-535.84,0.00023561,2]
[364779902,1749239450831,-440.0,0.00023561,2]
[364779903,1749239450841,-500.0,0.00023561,2]
[364779904,1749239450850,-2892.11,0.00023561,2]
[364779905,1749239450859,-440.0,0.00023561,2]
[364779906,1749239450869,-1124.66,0.00023561,2]
[364779907,1749239450879,-450.41,0.00023561,2]
[364779908,1749239450889,-2178.32,0.00023561,2]
[364779909,1749239450899,-878.49,0.00023561,2]
[364779910,1749239450910,-440.0,0.00023561,2]
[364779911,1749239450920,-4989.3,0.00023561,2]
[364779912,1749239450930,-440.0,0.00023561,2]
[364779913,1749239450940,-664.7,0.00023561,2]
[364779914,1749239450949,-1873.87,0.00023561,2]
[364779915,1749239451080,-553.06,0.00023561,2]
[364779916,1749239451091,-957.81,0.00023561,2]
[364779917,1749239451100,-1334.64,0.00023561,2]
[364779918,1749239451110,-287.555087,0.00023566,7]
[364779919,1749239451119,-14000.0,0.000236,6]
[364779920,1749239451129,-159.061941,0.000236,7]
[364779921,1749239451139,-159.061932,0.000236,7]
[364779922,1749239451149,-600.0,0.00023605,2]
[364779923,1749239451158,-1000.0,0.00023623,2]
[364779924,1749239451168,-218.60636307,0.00023644,2]
[364779925,1749239451177,-182.17196922,0.00023644,2]
[364779926,1749239451186,-182.17196922,0.00023644,2]
[364779927,1749239451195,-202.00448898,0.00023644,2]
[364779928,1749239451205,-3318.27446779,0.00023659,9]
[364779929,1749239451215,-2000.0,0.00023671,2]
[364779930,1749239451224,-2000.0,0.00023671,2]
[364779931,1749239451233,-2000.0,0.00023671,2]
[364779932,1749239451242,-2000.0,0.00023671,2]
[364779933,1749239451251,-2000.0,0.00023671,2]
[364779934,1749239451260,-2000.0,0.00023671,2]
[364779935,1749239451269,-2000.0,0.00023671,2]
[364779936,1749239451279,-2000.0,0.00023671,2]
[364779937,1749239451288,-2000.0,0.00023671,2]
[364779938,1749239451297,-2000.0,0.00023671,2]
[364779939,1749239451306,-2000.0,0.00023671,2]
[364779940,1749239451316,-2000.0,0.00023671,2]
[364779941,1749239451325,-437.03958727,0.00023671,2]
[364779942,1749239451335,-500.0,0.00023673,2]
[364779943,1749239451344,-1161.18670481,0.0002368,2]
[364779944,1749239451353,-1716.45122295,0.0002368,2]
[364779945,1749239451362,-237.19011294,0.00023688,2]
[364779946,1749239451375,-160.0,0.00023699,2]
[364779947,1749239451385,-123410.84690516,0.000237,2]
[364779948,1749239451395,-138817.69805272,0.000237,2]
[364779949,1749239451404,-151.0,0.000237,6]
[364779950,1749239451413,-1800.0,0.00023763,2]
[364779951,1749239451423,-1500.0,0.00023763,2]
[364779952,1749239451432,-502.60008131,0.00023763,2]
[364779953,1749239451442,-1500.0,0.00023763,2]
[364779954,1749239451452,-1500.0,0.00023763,2]
[364779955,1749239451463,-561.77688493,0.00023763,2]
[364779956,1749239451472,-1500.0,0.00023763,2]
[364779957,1749239451482,-1500.0,0.00023763,2]
[364779958,1749239451493,-1500.0,0.00023763,2]
[364779959,1749239451503,-1500.0,0.00023763,2]
[364779960,1749239451512,-1716.45122292,0.00023765,2]
[364779961,1749239451521,-280.15502885,0.00023767,2]
[364779962,1749239451531,-609.34697371,0.00023767,2]
[364779963,1749239451540,-1500.0,0.00023767,2]
[364779964,1749239451550,-500.0,0.00023767,2]
[364779965,1749239451560,-500.0,0.00023767,2]
[364779966,1749239451570,-41611.43164418,0.00023768,2]
[364779967,1749239451579,-1774477.82766097,0.0002378,5]
[364779968,1749239451589,-3318.27446779,0.00023797,9]
[364779969,1749239451599,-174399.96265148,0.000238,2]
[364779970,1749239451608,-440.0,0.00023835,2]
[364779971,1749239451618,-468.46,0.00023835,2]
[364779972,1749239451627,-4099.41,0.00023835,2]
[364779973,1749239451637,-884.52,0.00023835,2]
[364779974,1749239451648,-1995.24,0.00023835,2]
[364779975,1749239451658,-712.73,0.00023835,2]
[364779976,1749239451669,-440.0,0.00023835,2]
[364779977,1749239451679,-2530.66,0.00023835,2]
[364779978,1749239451690,-440.0,0.00023835,2]
[364779979,1749239451700,-440.0,0.00023835,2]
[364779980,1749239451711,-1295.65,0.00023835,2]
[364779981,1749239451722,-440.0,0.00023835,2]
[364779982,1749239451732,-1007.76,0.00023835,2]
[364779983,1749239451742,-1150.94,0.00023835,2]
[364779984,1749239451752,-662.4,0.00023835,2]
[364779985,1749239451762,-1190.15,0.00023835,2]
[364779986,1749239451771,-959.16,0.00023835,2]
[364779987,1749239451781,-440.0,0.00023835,2]
[364779988,1749239451791,-2892.11,0.00023835,2]
[364779989,1749239451801,-303.06147251,0.00023835,2]
[364779990,1749239451810,-1124.66,0.00023835,2]
[364779991,1749239451819,-450.41,0.00023835,2]
[364779992,1749239451831,-2178.32,0.00023835,2]
[364779993,1749239451841,-878.49,0.00023835,2]
[364779994,1749239451850,-440.0,0.00023835,2]
[364779995,1749239451861,-4989.3,0.00023835,2]
[364779996,1749239451870,-440.0,0.00023835,2]
[364779997,1749239451880,-664.7,0.00023835,2]
[364779998,1749239451889,-1873.87,0.00023835,2]
[364779999,1749239451898,-553.06,0.00023835,2]
[364780000,1749239451909,-500.0,0.00023835,8]
[364780001,1749239451922,-957.81,0.00023835,2]
[364780002,1749239451933,-1334.64,0.00023835,2]
[364780003,1749239451942,-1716.45122292,0.0002385,2]
[364780004,1749239451954,-600.0,0.00023851,2]
[364780005,1749239451963,-632826.95082786,0.00023888,2]
[364780006,1749239452103,-1755.62520974,0.00023888,2]
[364780007,1749239452117,-45647.07738724,0.00023888,2]
[364780008,1749239452842,-222.1535217,0.00019177,2]
[364780009,1749239452852,-700.33,0.00019178,2]
[364780010,1749239452861,-410.34661337,0.00019178,2]
[364780011,1749239452871,-52.463528,0.00019178,2]
[364780012,1749239554978,175.233157,0.00018603,2]
[364780013,1749239555331,153.43954699,0.00018868,2]
[364780030,1749239647029,2700.7190591,0.0001868,2]
[364780031,1749239647050,19018.6538,0.0001868,2]
[364780032,1749239647072,16538.7146683,0.0001868,2]
[364780035,1749239674832,2479.9391317,0.00018574,2]
[364780036,1749239674855,5130.9272832,0.00018574,2]
[364780060,1749239818937,405.272432,0.00013699,2]
[364780068,1749239934796,715.95,0.00024658,120]
[364780074,1749240034416,188.6793603,0.0001868,2]
[364780085,1749240364310,150.0,0.00018698,2]
[364780089,1749240402623,515.86234784,0.000189,2]
[364780090,1749240430130,-176.28953598,0.00019077,2]
[364780091,1749240430150,-151.30541512,0.00019166,2]
[364780092,1749240430170,-300.0,0.00019176,2]
[364780093,1749240430189,-300.0,0.00019176,2]
[364780094,1749240430209,-300.0,0.00019176,2]
[364780095,1749240430229,-1387.93864285,0.00019177,2]
[364780096,1749240430249,-300.0,0.00019177,2]
[364780097,1749240430274,-300.0,0.00019177,2]
[364780098,1749240430295,-300.0,0.00019177,2]
[364780099,1749240430315,-1200.0,0.00019177,2]
[364780100,1749240430338,-500.0,0.00019177,2]
[364780101,1749240430363,-500.0,0.00019177,2]
[364780102,1749240430384,-500.0,0.00019177,2]
[364780103,1749240430406,-500.0,0.00019177,2]
[364780104,1749240430431,-500.0,0.00019177,2]
[364780105,1749240430453,-500.0,0.00019177,2]
[364780106,1749240430475,-420.08423515,0.00019177,2]
[364780107,1749240430499,-500.0,0.00019177,2]
[364780108,1749240430522,-500.0,0.00019177,2]
[364780109,1749240430545,-500.0,0.00019177,2]
[364780110,1749240430577,-470.17923748,0.00019177,2]
[364780111,1749240430606,-500.0,0.00019177,2]
[364780112,1749240430632,-500.0,0.00019177,2]
[364780113,1749240430656,-500.0,0.00019177,2]
[364780114,1749240430680,-500.0,0.00019177,2]
[364780115,1749240430705,-500.0,0.00019177,2]
[364780116,1749240430727,-500.0,0.00019177,2]
[364780117,1749240430750,-500.0,0.00019177,2]
[364780118,1749240430773,-500.0,0.00019177,2]
[364780119,1749240430800,-500.0,0.00019177,2]
[364780120,1749240430827,-500.0,0.00019177,2]
[364780121,1749240430851,-500.0,0.00019177,2]
[364780122,1749240430875,-500.0,0.00019177,2]
[364780123,1749240430900,-641.44514274,0.00019177,2]
[364780124,1749240430924,-500.0,0.00019177,2]
[364780125,1749240430948,-500.0,0.00019177,2]
[364780126,1749240430972,-500.0,0.00019177,2]
[364780127,1749240430995,-500.0,0.00019177,2]
[364780128,1749240431018,-500.0,0.00019177,2]
[364780129,1749240431044,-500.0,0.00019177,2]
[364780130,1749240431067,-500.0,0.00019177,2]
[364780131,1749240431090,-500.0,0.00019177,2]
[364780132,1749240431113,-500.0,0.00019177,2]
[364780133,1749240431136,-500.0,0.00019177,2]
[364780134,1749240431159,-500.0,0.00019177,2]
[364780135,1749240431183,-500.0,0.00019177,2]
[364780136,1749240431206,-500.0,0.00019177,2]
[364780137,1749240431230,-500.0,0.00019177,2]
[364780138,1749240431258,-500.0,0.00019177,2]
[364780139,1749240431282,-500.0,0.00019177,2]
[364780140,1749240431306,-500.0,0.00019177,2]
[364780141,1749240431334,-64.35103467,0.00019177,2]
[364780142,1749240438099,-435.64896533,0.00019177,2]
[364780143,1749240438123,-500.0,0.00019177,2]
[364780144,1749240438147,-500.0,0.00019177,2]
[364780145,1749240438171,-500.0,0.00019177,2]
[364780146,1749240438196,-500.0,0.00019177,2]
[364780147,1749240438219,-500.0,0.00019177,2]
[364780148,1749240438242,-500.0,0.00019177,2]
[364780149,1749240438269,-500.0,0.00019177,2]
[364780150,1749240438293,-500.0,0.00019177,2]
[364780151,1749240438315,-500.0,0.00019177,2]
[364780152,1749240438339,-500.0,0.00019177,2]
[364780153,1749240438363,-500.0,0.00019177,2]
[364780154,1749240438388,-500.0,0.00019177,2]
[364780155,1749240438415,-500.0,0.00019177,2]
[364780156,1749240438439,-500.0,0.00019177,2]
[364780157,1749240438465,-500.0,0.00019177,2]
[364780158,1749240438488,-500.0,0.00019177,2]
[364780159,1749240438512,-264.14451427,0.00019177,2]
[364780160,1749240438533,-160.0,0.00019178,2]
[364780161,1749240438556,-421.97196986,0.00019178,2]
[364780162,1749240438577,-423.0692736,0.00019178,2]
[364780163,1749240438597,-439.93233988,0.00019178,2]
[364780164,1749240438618,-357.14965469,0.00019178,2]
[364780165,1749240438640,-440.0,0.00019178,2]
[364780166,1749240438662,-440.0,0.00019178,2]
[364780167,1749240438683,-440.0,0.00019178,2]
[364780168,1749240438704,-440.0,0.00019178,2]
[364780169,1749240438726,-440.0,0.00019178,2]
[364780170,1749240438748,-409.96172501,0.00019178,2]
[364780171,1749240438770,-390.0,0.00019178,2]
[364780172,1749240438792,-440.0,0.00019178,2]
[364780173,1749240438813,-440.0,0.00019178,2]
[364780174,1749240438834,-440.0,0.00019178,2]
[364780175,1749240438855,-400.0,0.00019178,2]
[364780176,1749240438875,-440.0,0.00019178,2]
[364780177,1749240438897,-308.73646605,0.00019178,2]
[364780178,1749240438930,150.0,0.00018785,2]
[364780189,1749240513194,150.0,0.00018791,2]
[364780195,1749240587479,150.0,0.00018936,2]
[364780237,1749240632060,-300.0,0.00019177,2]
[364780239,1749240632070,-131.26353395,0.00019178,2]
[364780241,1749240632080,-440.0,0.00019178,2]
[364780243,1749240632089,-440.0,0.00019178,2]
[364780245,1749240632099,-440.0,0.00019178,2]
[364780247,1749240632108,-285.89139179,0.00019178,2]
[364780249,1749240632118,-440.0,0.00019178,2]
[364780251,1749240632127,-440.0,0.00019178,2]
[364780253,1749240632136,-440.0,0.00019178,2]
[364780255,1749240632145,-440.0,0.00019178,2]
[364780257,1749240632154,-440.0,0.00019178,2]
[364780259,1749240632164,-420.0,0.00019178,2]
[364780261,1749240632173,-420.0,0.00019178,2]
[364780262,1749240632182,-440.0,0.00019178,2]
[364780263,1749240632192,-440.0,0.00019178,2]
[364780264,1749240632201,-359.06232774,0.00019178,2]
[364780265,1749240632211,-440.0,0.00019178,2]
[364780266,1749240632220,-440.0,0.00019178,2]
[364780267,1749240632230,-440.0,0.00019178,2]
[364780268,1749240632239,-306.75854565,0.00019178,2]
[364780269,1749240632247,-440.0,0.00019178,2]
[364780270,1749240632257,-440.0,0.00019178,2]
[364780271,1749240632266,-440.0,0.00019178,2]
[364780272,1749240632276,-440.0,0.00019178,2]
[364780273,1749240632285,-440.0,0.00019178,2]
[364780274,1749240632295,-440.0,0.00019178,2]
[364780275,1749240632304,-440.0,0.00019178,2]
[364780276,1749240632313,-440.0,0.00019178,2]
[364780277,1749240632324,-698.12,0.00019178,2]
[364780278,1749240632337,-440.0,0.00019178,2]
[364780279,1749240632346,-440.0,0.00019178,2]
[364780280,1749240632356,-440.0,0.00019178,2]
[364780281,1749240632366,-440.0,0.00019178,2]
[364780282,1749240632376,-440.0,0.00019178,2]
[364780283,1749240632385,-182.88,0.00019178,2]
[364780284,1749240632394,-604.04,0.00019178,2]
[364780285,1749240632406,-420.0,0.00019178,2]
[364780286,1749240632416,-560.01,0.00019178,2]
[364780287,1749240632425,-440.0,0.00019178,2]
[364780288,1749240632434,-233.2,0.00019178,2]
[364780289,1749240632443,-440.0,0.00019178,2]
[364780290,1749240632453,-440.0,0.00019178,2]
[364780291,1749240632465,-440.0,0.00019178,2]
[364780292,1749240632474,-420.0,0.00019178,2]
[364780293,1749240632484,-440.0,0.00019178,2]
[364780294,1749240632496,-440.0,0.00019178,2]
[364780295,1749240632506,-420.0,0.00019178,2]
[364780296,1749240632515,-420.0,0.00019178,2]
[364780297,1749240632525,-400.0,0.00019178,2]
[364780298,1749240632534,-440.0,0.00019178,2]
[364780299,1749240632544,-473.56363254,0.00019178,2]
[364780300,1749240632554,-411.31524347,0.00019178,2]
[364780301,1749240632563,-410.0,0.00019178,2]
[364780302,1749240632573,-420.0,0.00019178,2]
[364780303,1749240632583,-440.0,0.00019178,2]
[364780304,1749240632592,-430.0,0.00019178,2]
[364780305,1749240632602,-440.0,0.00019178,2]
[364780306,1749240632611,-242.3195849,0.00019178,2]
[364780307,1749240632621,-420.0,0.00019178,2]
[364780308,1749240632630,-400.0,0.00019178,2]
[364780309,1749240632640,-440.0,0.00019178,2]
[364780310,1749240632650,-413.28481233,0.00019178,2]
[364780311,1749240632661,-191.8996673,0.00019178,2]
[364780312,1749240632671,-440.0,0.00019178,2]
[364780313,1749240632680,-430.0,0.00019178,2]
[364780314,1749240632690,-440.0,0.00019178,2]
[364780315,1749240632699,-560.87,0.00019178,2]
[364780316,1749240632711,-440.0,0.00019178,2]
[364780317,1749240632721,-440.0,0.00019178,2]
[364780318,1749240632730,-430.0,0.00019178,2]
[364780319,1749240632740,-440.0,0.00019178,2]
[364780320,1749240632750,-470.48619459,0.00019178,2]
[364780321,1749240632760,-495.21136589,0.00019178,2]
[364780322,1749240632769,-440.0,0.00019178,2]
[364780323,1749240632779,-440.0,0.00019178,2]
[364780324,1749240632788,-516.7,0.00019178,2]
[364780325,1749240632798,-440.0,0.00019178,2]
[364780326,1749240632807,-440.0,0.00019178,2]
[364780327,1749240632816,-440.0,0.00019178,2]
[364780328,1749240632826,-440.0,0.00019178,2]
[364780329,1749240632835,-440.0,0.00019178,2]
[364780330,1749240632845,-440.0,0.00019178,2]
[364780331,1749240632855,-440.0,0.00019178,2]
[364780332,1749240632864,-440.0,0.00019178,2]
[364780333,1749240632874,-375.74198869,0.00019178,2]
[364780334,1749240632883,-377.536472,0.00019178,2]
[364780335,1749240632892,-440.0,0.00019178,2]
[364780336,1749240632902,-420.0,0.00019178,2]
[364780337,1749240632911,-440.0,0.00019178,2]
[364780338,1749240632921,-400.0,0.00019178,2]
[364780339,1749240632930,-440.0,0.00019178,2]
[364780340,1749240632941,-430.0,0.00019178,2]
[364780341,1749240632950,-440.0,0.00019178,2]
[364780342,1749240632960,-445.81,0.00019178,2]
[364780343,1749240632970,-390.0,0.00019178,2]
[364780344,1749240632980,-440.0,0.00019178,2]
[364780345,1749240632990,-440.0,0.00019178,2]
[364780346,1749240632999,-440.0,0.00019178,2]
[364780347,1749240633009,-410.0,0.00019178,2]
[364780348,1749240633019,-440.0,0.00019178,2]
[364780349,1749240633029,-440.0,0.00019178,2]
[364780350,1749240633038,-440.0,0.00019178,2]
[364780351,1749240633047,-941.53,0.00019178,2]
[364780352,1749240633057,-440.0,0.00019178,2]
[364780353,1749240633067,-1886.05,0.00019178,2]
[364780354,1749240633077,-500.0,0.00019178,2]
[364780355,1749240633087,-440.0,0.00019178,2]
[364780356,1749240633097,-500.0,0.00019178,2]
[364780357,1749240633106,-500.0,0.00019178,2]
[364780358,1749240633116,-440.0,0.00019178,2]
[364780359,1749240633125,-440.0,0.00019178,2]
[364780360,1749240633136,-440.0,0.00019178,2]
[364780361,1749240633146,-440.0,0.00019178,2]
[364780362,1749240633156,-267.03578636,0.00019178,2]
[364780363,1749240633166,-654.4,0.00019178,2]
[364780364,1749240633176,-440.0,0.00019178,2]
[364780365,1749240633185,-925.19,0.00019178,2]
[364780366,1749240633195,-440.0,0.00019178,2]
[364780367,1749240633205,-727.62,0.00019178,2]
[364780368,1749240633216,-440.0,0.00019178,2]
[364780369,1749240633225,-440.0,0.00019178,2]
[364780370,1749240633236,-440.0,0.00019178,2]
[364780371,1749240633246,-440.0,0.00019178,2]
[364780372,1749240633255,-440.0,0.00019178,2]
[364780373,1749240633265,-462.23,0.00019178,2]
[364780374,1749240633274,-420.0,0.00019178,2]
[364780375,1749240633284,-440.0,0.00019178,2]
[364780376,1749240633294,-420.0,0.00019178,2]
[364780377,1749240633304,-440.0,0.00019178,2]
[364780378,1749240633313,-2822.37,0.00019178,2]
[364780379,1749240633323,-440.0,0.00019178,2]
[364780380,1749240633338,-440.0,0.00019178,2]
[364780381,1749240633348,-440.0,0.00019178,2]
[364780382,1749240633357,-181.30212675,0.00019178,2]
[364780383,1749240633367,-440.0,0.00019178,2]
[364780384,1749240633377,-440.0,0.00019178,2]
[364780385,1749240633388,-440.0,0.00019178,2]
[364780386,1749240633397,-440.0,0.00019178,2]
[364780387,1749240633407,-1200.29,0.00019178,2]
[364780388,1749240633418,-440.0,0.00019178,2]
[364780389,1749240633427,-440.0,0.00019178,2]
[364780390,1749240633437,-2670.16,0.00019178,2]
[364780391,1749240633447,-440.0,0.00019178,2]
[364780392,1749240633456,-717.71,0.00019178,2]
[364780393,1749240633466,-440.0,0.00019178,2]
[364780394,1749240633476,-440.0,0.00019178,2]
[364780395,1749240633486,-420.0,0.00019178,2]
[364780396,1749240633496,-440.0,0.00019178,2]
[364780397,1749240633506,-440.0,0.00019178,2]
[364780398,1749240633515,-440.0,0.00019178,2]
[364780399,1749240633525,-410.0,0.00019178,2]
[364780400,1749240633535,-440.0,0.00019178,2]
[364780401,1749240633545,-440.0,0.00019178,2]
[364780402,1749240633555,-916.0,0.00019178,2]
[364780403,1749240633564,-440.0,0.00019178,2]
[364780404,1749240633574,-849.72,0.00019178,2]